bitfinex/quotes_BTCUSD_20250617
["timestamp","ask_amount","ask_price","bid_price","bid_amount"]
[1750174309110,0.00347414,104200.0,104190.0,0.90599405]
[1750174309330,0.00347414,104200.0,104190.0,1.26997839]
[1750174309951,0.00347414,104200.0,104190.0,1.26797839]
[1750174310407,0.00347414,104200.0,104190.0,0.60480971]
[1750174310631,0.00347414,104200.0,104190.0,0.93639405]
[1750174310848,0.00347414,104200.0,104190.0,1.24399405]
[1750174313220,0.00347414,104200.0,104190.0,1.03075405]
[1750174313432,0.0332,104210.0,104200.0,0.22072824]
[1750174313646,0.0638,104210.0,104200.0,0.6486908]
[1750174314729,0.0648,104210.0,104200.0,0.6566908]
[1750174315195,0.0668,104210.0,104200.0,0.54294646]
[1750174315446,0.0668,104210.0,104200.0,0.33210646]
[1750174315653,0.0668,104210.0,104200.0,0.34664731]
[1750174315873,0.0668,104210.0,104200.0,0.88887165]
[1750174317121,0.0668,104210.0,104200.0,0.55728731]
[1750174317329,0.0668,104210.0,104200.0,0.88887165]
[1750174317755,0.0668,104210.0,104200.0,0.88839165]
[1750174318176,0.0362,104210.0,104200.0,0.88839165]
[1750174318416,0.0362,104210.0,104200.0,0.88639165]
[1750174318623,0.0668,104210.0,104200.0,0.88639165]
[1750174318840,0.0668,104210.0,104200.0,0.55480731]
[1750174319056,0.0362,104210.0,104200.0,0.88639165]
[1750174319289,0.003,104210.0,104200.0,1.61617599]
[1750174319503,0.0614,104230.0,104220.0,0.23522673]
[1750174319737,0.0308,104230.0,104220.0,0.54074849]
[1750174319955,0.0618,104230.0,104220.0,0.66305283]
[1750174320168,0.0618,104230.0,104220.0,0.87217283]
[1750174320379,0.0618,104230.0,104220.0,0.54042849]
[1750174321087,0.0618,104230.0,104220.0,0.33146849]
[1750174321513,0.0618,104230.0,104220.0,0.54014849]
[1750174321732,0.43175878,104230.0,104220.0,0.22068588]
[1750174321999,0.43175878,104230.0,104220.0,0.22068607]
[1750174322000,0.63323618,104230.0,104220.0,0.22068607]
[1750174322212,0.62464285,104230.0,104220.0,0.22868625]
[1750174322443,0.07339333,104230.0,104220.0,0.25487531]
[1750174322666,0.0638,104230.0,104220.0,0.90552226]
[1750174322882,0.0318,104230.0,104220.0,1.2221066]
[1750174323106,0.0312,104240.0,104230.0,0.23520556]
[1750174323365,0.0312,104240.0,104230.0,0.33144732]
[1750174323590,0.0312,104240.0,104230.0,0.66303166]
[1750174323813,0.16074162,104260.0,104250.0,0.22062238]
[1750174323814,0.0312,104260.0,104250.0,0.22062238]
[1750174324036,0.0312,104260.0,104250.0,0.64844848]
[1750174324275,0.0312,104260.0,104250.0,0.66298933]
[1750174324519,0.0312,104260.0,104250.0,0.33140499]
[1750174324739,0.0312,104260.0,104250.0,1.25005334]
[1750174324978,0.11450681,104280.0,104270.0,0.22058006]
[1750174325409,0.34758761,104280.0,104270.0,0.22058024]
[1750174325633,0.24288986,104270.0,104260.0,0.20140335]
[1750174325865,0.24291037,104260.0,104250.0,0.00017646]
[1750174326082,1.10577022,104260.0,104250.0,0.00517646]
[1750174326306,1.22977022,104260.0,104250.0,0.00017646]
[1750174326727,0.81576096,104260.0,104250.0,0.00017646]
[1750174327178,1.22977022,104260.0,104250.0,0.00017646]
[1750174327383,1.32591944,104260.0,104250.0,0.00017646]
[1750174328239,1.32591944,104260.0,104250.0,0.00021646]
[1750174328468,1.32691944,104260.0,104250.0,0.00421646]
[1750174328885,1.32691944,104260.0,104250.0,0.00921646]
[1750174329108,1.4231612,104260.0,104250.0,0.00921646]
[1750174329531,0.93300135,104260.0,104250.0,0.00921646]
[1750174329815,1.25076885,104260.0,104250.0,0.00921646]
[1750174330023,1.25076885,104260.0,104250.0,0.00421646]
[1750174331760,1.24986139,104260.0,104250.0,0.00321646]
[1750174331981,1.15461963,104260.0,104250.0,0.00521646]
[1750174332199,0.74061037,104260.0,104250.0,0.00221646]
[1750174332438,1.15361963,104260.0,104250.0,0.00021646]
[1750174332648,0.73961037,104260.0,104250.0,0.00321646]
[1750174332856,0.66561037,104260.0,104250.0,0.00321646]
[1750174333062,1.25076885,104260.0,104250.0,0.00021646]
[1750174333270,1.04351959,104260.0,104250.0,0.00021646]
[1750174333486,1.07961963,104260.0,104250.0,0.00221646]
[1750174334134,1.10842763,104260.0,104250.0,0.00221646]
[1750174334347,0.76842763,104260.0,104250.0,0.19406298]
[1750174334554,0.81461963,104260.0,104250.0,0.00221646]
[1750174334765,0.91076885,104260.0,104250.0,0.00221646]
[1750174335211,1.25076885,104260.0,104250.0,0.00221646]
[1750174335434,0.83675959,104260.0,104250.0,0.00221646]
[1750174335651,1.25076885,104260.0,104250.0,0.00221646]
[1750174335872,1.45696885,104260.0,104250.0,0.00221646]
[1750174336094,1.55321061,104260.0,104250.0,0.00221646]
[1750174336536,1.36081963,104260.0,104250.0,0.00221646]
[1750174336763,1.28549963,104260.0,104250.0,0.2036553]
[1750174336996,1.36049963,104260.0,104250.0,0.01180878]
[1750174337233,1.25086139,104260.0,104250.0,0.00221646]
[1750174337475,0.70020168,104260.0,104250.0,0.00221646]
[1750174337728,0.28954179,104260.0,104250.0,0.22283894]
[1750174337974,0.0327,104260.0,104250.0,0.2324308]
[1750174338213,0.01917949,104270.0,104260.0,0.22060122]
[1750174338451,0.03835963,104270.0,104260.0,0.22060122]
[1750174338694,0.03835963,104270.0,104260.0,0.25929953]
[1750174338953,0.23976048,104270.0,104260.0,0.25929971]
[1750174339184,0.29377064,104270.0,104260.0,0.2206014]
[1750174339428,0.30968187,104280.0,104260.0,0.31684215]
[1750174339674,0.0636,104290.0,104280.0,0.210954]
[1750174339904,0.09236418,104290.0,104280.0,0.210954]
[1750174340135,0.05906418,104290.0,104280.0,0.22054292]
[1750174340367,0.27401273,104290.0,104280.0,0.22054292]
[1750174340606,0.27634218,104300.0,104290.0,0.2013614]
[1750174340842,0.27634218,104300.0,104280.0,0.30719576]
[1750174340843,0.01917609,104290.0,104280.0,0.30719576]
[1750174341060,0.02876436,104290.0,104280.0,0.31678468]
[1750174341277,0.01917609,104290.0,104280.0,0.31678468]
[1750174341506,0.23971449,104290.0,104280.0,0.31678505]
[1750174341772,0.43417508,104300.0,104290.0,0.22053767]
[1750174342015,0.43417508,104300.0,104290.0,0.2013614]
[1750174342016,0.5605168,104300.0,104290.0,0.2013614]
[1750174342248,0.5605168,104300.0,104290.0,0.21094977]
[1750174342476,0.72236231,104300.0,104290.0,0.19177294]
[1750174342711,0.00958809,104290.0,104280.0,0.32750979]
[1750174342949,0.02117636,104290.0,104280.0,0.31792096]
[1750174343183,0.021176,104290.0,104280.0,0.31792096]
[1750174343446,0.01917609,104290.0,104280.0,0.29774303]
[1750174343692,0.01917609,104290.0,104280.0,0.31692169]
[1750174343693,0.02876436,104290.0,104280.0,0.31692169]
[1750174343919,0.02976436,104290.0,104280.0,0.33151061]
[1750174344186,0.23012585,104290.0,104280.0,0.31692169]
[1750174344419,0.02976436,104290.0,104280.0,0.34309962]
[1750174344658,0.02017609,104290.0,104280.0,0.34309962]
[1750174345130,0.01058791,104290.0,104280.0,0.3335107]
[1750174345364,0.01058791,104290.0,104280.0,0.34309962]
[1750174345617,0.001,104290.0,104280.0,0.34809962]
[1750174346086,0.001,104290.0,104280.0,0.77664973]
[1750174346325,0.001,104290.0,104280.0,0.80664973]
[1750174346561,0.001,104290.0,104280.0,0.83824973]
[1750174347042,0.001,104290.0,104280.0,1.17824973]
[1750174347724,0.051,104290.0,104280.0,1.17824973]
[1750174348411,0.051,104290.0,104280.0,1.45348973]
[1750174348638,0.051,104290.0,104280.0,1.59009064]
[1750174349077,0.051,104290.0,104280.0,2.32582464]
[1750174349581,2.0,104320.0,104310.0,0.23503633]
[1750174349807,2.0,104320.0,104310.0,0.53479809]
[1750174350031,2.0,104320.0,104310.0,1.11548826]
[1750174351166,2.0,104320.0,104310.0,0.701479]
[1750174351395,2.0,104320.0,104310.0,1.11548826]
[1750174351624,2.001,104320.0,104310.0,1.15458826]
[1750174351856,2.001,104320.0,104310.0,1.49458826]
[1750174352073,2.001,104320.0,104310.0,1.080579]
[1750174352284,2.001,104320.0,104310.0,1.49458826]
[1750174352725,2.001,104320.0,104310.0,1.49958826]
[1750174352946,2.001,104320.0,104310.0,2.59435926]
[1750174353429,2.001,104320.0,104310.0,2.62330173]
[1750174353884,2.001,104320.0,104310.0,1.37705747]
[1750174354110,2.001,104320.0,104310.0,1.78495373]
[1750174354789,2.001,104320.0,104310.0,0.91100147]
[1750174355012,2.001,104320.0,104310.0,0.88090147]
[1750174355225,2.001,104320.0,104310.0,1.12798147]
[1750174355710,2.001,104320.0,104310.0,1.57479073]
[1750174355901,2.001,104320.0,104310.0,2.79801073]
[1750174356371,2.001,104320.0,104310.0,2.38372147]
[1750174356585,2.001,104320.0,104310.0,2.79773073]
[1750174357027,2.001,104320.0,104310.0,2.52093073]
[1750174357281,2.001,104320.0,104310.0,1.91193735]
[1750174357496,2.001,104320.0,104310.0,2.01104573]
[1750174358453,2.001,104320.0,104310.0,1.08858147]
[1750174358677,1.80814683,104320.0,104310.0,1.50259073]
[1750174359133,1.80814683,104320.0,104310.0,3.87350073]
[1750174359355,1.79855975,104320.0,104310.0,3.87350073]
[1750174359593,1.79855975,104320.0,104310.0,4.28750999]
[1750174359822,1.68897266,104320.0,104310.0,4.28750999]
[1750174360040,1.64103808,104320.0,104310.0,4.28750999]
[1750174360269,1.63145117,104320.0,104310.0,4.43750999]
[1750174360478,1.51115117,104320.0,104310.0,4.43750999]
[1750174360692,1.51115117,104320.0,104310.0,4.02350073]
[1750174360693,1.41999264,104320.0,104310.0,4.02350073]
[1750174360920,1.41040573,104320.0,104310.0,4.02350073]
[1750174361149,1.36247115,104320.0,104310.0,4.53850999]
[1750174361364,1.36247115,104320.0,104310.0,4.12450073]
[1750174361365,1.35288424,104320.0,104310.0,4.12450073]
[1750174361583,1.25960424,104320.0,104310.0,3.91962073]
[1750174361796,1.25475424,104320.0,104310.0,4.04706073]
[1750174362905,1.25475424,104320.0,104310.0,3.76962073]
[1750174363117,1.25475424,104320.0,104310.0,4.04674073]
[1750174364025,1.24993424,104320.0,104310.0,4.04674073]
[1750174364238,1.18998732,104320.0,104310.0,4.04674073]
[1750174364456,1.01675429,104320.0,104310.0,4.46074999]
[1750174364671,0.98248738,104320.0,104310.0,4.46074999]
[1750174364923,0.8995528,104320.0,104310.0,4.46074999]
[1750174365168,0.75036365,104320.0,104310.0,4.90334999]
[1750174365392,0.69126748,104320.0,104310.0,4.90334999]
[1750174365620,0.21912959,104320.0,104310.0,4.48934073]
[1750174365840,0.1616081,104320.0,104310.0,4.90334999]
[1750174366066,0.11367352,104320.0,104310.0,4.80234999]
[1750174366288,0.05615203,104320.0,104310.0,3.97433147]
[1750174366519,0.05615203,104320.0,104310.0,4.79734999]
[1750174366742,0.14185059,104370.0,104360.0,0.22038983]
[1750174366957,0.14185059,104370.0,104360.0,0.52287159]
[1750174367805,0.14185059,104370.0,104360.0,0.52279159]
[1750174368016,0.14232561,104370.0,104360.0,0.52279159]
[1750174368446,0.06617502,104370.0,104360.0,0.52279159]
[1750174368920,0.00247502,104370.0,104360.0,1.09722271]
[1750174369133,0.00247502,104370.0,104360.0,1.55631297]
[1750174369340,0.00947502,104370.0,104360.0,0.98846371]
[1750174369555,0.00947502,104370.0,104360.0,1.40247297]
[1750174369766,0.00747502,104370.0,104360.0,3.79407471]
[1750174370002,0.00747502,104370.0,104360.0,3.44874397]
[1750174370451,0.00047502,104370.0,104360.0,3.47914397]
[1750174370663,0.00047502,104370.0,104360.0,2.41185271]
[1750174370893,0.00647502,104370.0,104360.0,2.41185271]
[1750174371116,0.00847502,104370.0,104360.0,2.41185271]
[1750174371349,0.00847502,104370.0,104360.0,2.63918797]
[1750174371796,0.0199121,104390.0,104380.0,0.63435686]
[1750174372013,0.0199121,104390.0,104380.0,0.93645508]
[1750174372236,0.0836121,104390.0,104380.0,0.31672582]
[1750174372456,0.0836121,104390.0,104380.0,0.52232582]
[1750174372723,0.0836121,104390.0,104380.0,0.31672582]
[1750174372953,0.0836121,104390.0,104380.0,0.33126667]
[1750174373172,0.0836121,104390.0,104380.0,0.53878667]
[1750174373396,0.09319082,104390.0,104380.0,0.53866667]
[1750174373833,0.0836121,104390.0,104380.0,0.53866667]
[1750174374290,0.11234863,104390.0,104380.0,0.56769245]
[1750174374509,0.09319091,104390.0,104380.0,0.29956608]
[1750174374733,0.0836121,104390.0,104380.0,0.53826667]
[1750174374959,0.0199121,104390.0,104380.0,0.95227593]
[1750174375865,0.0199121,104390.0,104380.0,0.53826667]
[1750174376321,0.0199121,104390.0,104380.0,0.53626667]
[1750174376539,0.0506121,104390.0,104380.0,0.53626667]
[1750174376762,0.0819121,104390.0,104380.0,0.53594667]
[1750174376980,0.0819121,104390.0,104380.0,0.33126667]
[1750174377418,0.0819121,104390.0,104380.0,0.53574667]
[1750174377653,0.0506121,104390.0,104380.0,0.95275593]
[1750174377887,0.0506121,104390.0,104380.0,0.98222154]
[1750174378100,0.0831121,104390.0,104380.0,0.56821228]
[1750174378346,0.0831121,104390.0,104380.0,0.56797228]
[1750174378839,0.0831121,104390.0,104380.0,0.34919143]
[1750174379284,0.0831121,104390.0,104380.0,0.36373228]
[1750174379508,0.0831121,104390.0,104380.0,0.56745228]
[1750174380654,0.0831121,104390.0,104380.0,0.56445228]
[1750174380877,0.0831121,104390.0,104380.0,0.54991143]
[1750174381315,0.0831121,104390.0,104380.0,0.55191143]
[1750174381812,0.0831121,104390.0,104380.0,0.31872582]
[1750174382050,0.31301732,104390.0,104380.0,0.20332441]
[1750174382275,0.31301732,104390.0,104380.0,0.23206425]
[1750174382276,0.196428,104390.0,104380.0,0.23206425]
[1750174382504,0.196428,104390.0,104380.0,0.43542425]
[1750174382723,0.38801796,104390.0,104380.0,0.42584452]
[1750174382957,0.09269101,104390.0,104380.0,0.43542443]
[1750174383200,0.09269082,104390.0,104380.0,0.43546443]
[1750174383416,0.09269082,104390.0,104380.0,0.32830619]
[1750174383638,0.0831121,104390.0,104380.0,0.53170619]
[1750174383854,0.09269091,104390.0,104380.0,0.53170619]
[1750174384093,0.0831121,104390.0,104380.0,0.53170619]
[1750174385447,0.0831121,104390.0,104380.0,0.45170619]
[1750174386771,0.09269073,104390.0,104380.0,0.45170619]
[1750174387040,0.0831121,104390.0,104380.0,0.45170619]
[1750174387256,0.0831121,104390.0,104380.0,0.45174619]
[1750174388836,0.0831121,104390.0,104380.0,0.86575545]
[1750174389050,0.0199121,104390.0,104380.0,0.95644689]
[1750174389492,0.0199121,104390.0,104380.0,0.46628704]
[1750174389726,0.0199121,104390.0,104380.0,0.8802963]
[1750174390823,0.0199121,104390.0,104380.0,0.46628704]
[1750174391283,0.0199121,104390.0,104380.0,0.8791363]
[1750174391488,0.0199121,104390.0,104380.0,0.53624704]
[1750174391707,0.0505121,104390.0,104380.0,0.26288704]
[1750174391917,0.0505121,104390.0,104380.0,0.46780704]
[1750174392134,0.0199121,104390.0,104380.0,0.8818163]
[1750174392350,0.0199121,104390.0,104380.0,0.46780704]
[1750174392576,0.0505121,104390.0,104380.0,0.26588704]
[1750174392806,0.10056954,104390.0,104380.0,0.26588704]
[1750174393061,1.14729298,104390.0,104380.0,0.09928176]
[1750174393288,1.14729298,104390.0,104380.0,0.00304]
[1750174393289,1.19729298,104390.0,104380.0,0.00304]
[1750174393987,1.19729298,104390.0,104380.0,4e-05]
[1750174395204,1.19829298,104390.0,104380.0,4e-05]
[1750174395426,0.7581596,104390.0,104380.0,4e-05]
[1750174395868,1.17216886,104390.0,104380.0,4e-05]
[1750174396536,0.7581596,104390.0,104380.0,4e-05]
[1750174396749,1.37316886,104390.0,104380.0,4e-05]
[1750174396977,1.46931808,104390.0,104380.0,4e-05]
[1750174397216,1.37316886,104390.0,104380.0,4e-05]
[1750174398828,1.46941062,104390.0,104380.0,4e-05]
[1750174399285,1.50929583,104390.0,104380.0,4e-05]
[1750174399543,1.50829583,104390.0,104380.0,4e-05]
[1750174399794,1.30729583,104390.0,104380.0,4e-05]
[1750174400094,0.80004481,104390.0,104380.0,4e-05]
[1750174400358,1.41385407,104390.0,104380.0,4e-05]
[1750174400608,1.41385407,104390.0,104380.0,0.20122786]
[1750174400609,0.16314909,104390.0,104380.0,0.20122786]
[1750174400870,0.0844121,104390.0,104380.0,0.2203876]
[1750174401177,0.0844121,104390.0,104380.0,0.31662936]
[1750174401880,0.09399073,104390.0,104380.0,0.31662936]
[1750174402099,0.18814873,104390.0,104380.0,0.31662936]
[1750174402334,0.197728,104390.0,104380.0,0.31662936]
[1750174402549,0.119728,104390.0,104380.0,0.31662936]
[1750174402737,0.194728,104390.0,104380.0,0.31662936]
[1750174402994,0.38631723,104390.0,104380.0,0.21080787]
[1750174403210,0.72731796,104390.0,104380.0,0.22038797]
[1750174403460,0.77731796,104390.0,104380.0,0.22038797]
[1750174403692,1.19132722,104390.0,104380.0,0.21080805]
[1750174403894,1.19132722,104390.0,104380.0,0.22996798]
[1750174404172,0.57614937,104390.0,104380.0,0.23954771]
[1750174404413,0.77731796,104390.0,104380.0,0.23954771]
[1750174404662,0.26174805,104390.0,104380.0,0.22996798]
[1750174404878,0.75075731,104390.0,104380.0,4e-05]
[1750174405081,0.051,104390.0,104380.0,0.22038806]
[1750174405326,0.17688915,104390.0,104380.0,0.22996779]
[1750174405539,0.35889957,104390.0,104380.0,0.22038806]
[1750174405763,0.16431654,104390.0,104380.0,0.22996779]
[1750174405993,0.45952788,104400.0,104380.0,0.22038742]
[1750174406236,0.45952788,104400.0,104390.0,0.22990577]
[1750174406237,0.26787662,104400.0,104390.0,0.22990577]
[1750174406473,0.2607275,104400.0,104390.0,0.22032696]
[1750174406668,0.6007275,104400.0,104390.0,0.21074787]
[1750174407155,0.6007275,104400.0,104390.0,0.22032696]
[1750174407383,0.07215598,104400.0,104390.0,0.22990577]
[1750174407630,0.08472786,104400.0,104390.0,0.22990577]
[1750174407849,0.14533434,104400.0,104390.0,0.22990577]
[1750174408072,0.22332786,104400.0,104390.0,0.22990577]
[1750174408304,0.47362614,104400.0,104390.0,0.22032696]
[1750174408529,0.42148376,104400.0,104390.0,0.22990587]
[1750174408769,0.21733424,104400.0,104390.0,0.23948468]
[1750174408980,0.21733424,104400.0,104390.0,0.22032696]
[1750174409217,0.0761779,104400.0,104390.0,0.23948477]
[1750174409675,0.003,104400.0,104390.0,0.23948477]
[1750174409892,0.01257771,104400.0,104390.0,0.23948477]
[1750174410173,0.003,104400.0,104390.0,0.41187712]
[1750174410380,0.0125779,104400.0,104390.0,0.41187712]
[1750174410610,0.01257781,104400.0,104390.0,0.41187712]
[1750174410828,0.003,104400.0,104390.0,0.41187712]
[1750174411046,0.01257771,104400.0,104390.0,0.41187712]
[1750174411263,0.02215561,104400.0,104390.0,0.41187712]
[1750174411479,0.003,104400.0,104390.0,0.41187712]
[1750174411704,0.01257781,104400.0,104390.0,0.33572653]
[1750174411923,0.003,104400.0,104390.0,0.33572653]
[1750174412140,0.03173387,104400.0,104390.0,0.33572653]
[1750174412359,0.03173387,104400.0,104390.0,0.53352653]
[1750174412808,0.24532741,104400.0,104390.0,0.28783099]
[1750174413026,0.35722659,104390.0,104380.0,4e-05]
[1750174413249,0.81165694,104390.0,104380.0,4e-05]
[1750174413458,0.73665694,104390.0,104380.0,4e-05]
[1750174413670,0.73665694,104390.0,104380.0,0.19744]
[1750174413928,0.39764768,104390.0,104380.0,0.19164758]
[1750174414157,0.39764768,104390.0,104380.0,0.20122786]
[1750174414158,0.20605845,104390.0,104380.0,0.20122786]
[1750174414374,0.40722649,104390.0,104380.0,0.39850786]
[1750174414587,0.39764768,104390.0,104380.0,4e-05]
[1750174415250,0.81165694,104390.0,104380.0,4e-05]
[1750174415470,0.39764768,104390.0,104380.0,0.20122795]
[1750174415692,0.39764768,104390.0,104380.0,0.22996807]
[1750174415920,0.40722714,104390.0,104380.0,0.22996807]
[1750174416137,0.40822714,104390.0,104380.0,0.21080814]
[1750174416355,0.39864805,104390.0,104380.0,0.21080814]
[1750174416799,0.39864805,104390.0,104380.0,0.22996779]
[1750174416800,0.21663717,104390.0,104380.0,0.22996779]
[1750174417225,0.14163717,104390.0,104380.0,0.22996779]
[1750174417441,0.21663717,104390.0,104380.0,0.22996779]
[1750174417922,0.39864759,104390.0,104380.0,4e-05]
[1750174418128,0.85906169,104390.0,104380.0,0.19164758]
[1750174418344,0.85716764,104390.0,104380.0,4e-05]
[1750174418558,0.84758855,104390.0,104380.0,4e-05]
[1750174418788,0.19558522,104390.0,104380.0,0.21080787]
[1750174419011,0.39675391,104390.0,104380.0,4e-05]
[1750174419238,0.33674796,104390.0,104380.0,0.20122777]
[1750174419450,0.33674796,104390.0,104380.0,0.22038769]
[1750174419665,0.33674796,104390.0,104380.0,0.20122777]
[1750174419883,0.36904796,104390.0,104380.0,0.21080778]
[1750174420101,0.29404796,104390.0,104380.0,0.20122777]
[1750174420373,0.36904796,104390.0,104380.0,0.21080778]
[1750174420589,0.36904796,104390.0,104380.0,0.2203877]
[1750174420802,0.29404796,104390.0,104380.0,0.2203877]
[1750174421216,0.36904796,104390.0,104380.0,0.2203877]
[1750174421438,0.17745827,104390.0,104380.0,0.22996743]
[1750174421696,0.11503148,104390.0,104380.0,0.22996743]
[1750174421920,0.14815157,104390.0,104380.0,0.22996743]
[1750174422141,0.07973699,104390.0,104380.0,0.22996743]
[1750174422353,0.10473672,104390.0,104380.0,0.32620919]
[1750174422560,0.02015754,104390.0,104380.0,0.32620919]
[1750174422778,0.10473635,104390.0,104380.0,0.32620919]
[1750174423015,0.22132622,104390.0,104380.0,0.29746962]
[1750174423242,0.4011475,104390.0,104380.0,0.40796796]
[1750174423475,0.4011475,104390.0,104380.0,0.21080796]
[1750174423710,0.89214771,104390.0,104380.0,4e-05]
[1750174423942,1.52506947,104390.0,104380.0,4e-05]
[1750174424178,1.54061032,104390.0,104380.0,4e-05]
[1750174424364,0.73918788,104370.0,104360.0,4e-05]
[1750174424611,1.4459989,104370.0,104360.0,4e-05]
[1750174424838,1.54214812,104370.0,104360.0,4e-05]
[1750174425069,1.97069823,104370.0,104360.0,4e-05]
[1750174425546,0.88510221,104370.0,104360.0,4e-05]
[1750174425780,0.39918788,104370.0,104360.0,0.00962212]
[1750174426021,0.1075,104370.0,104360.0,0.23001158]
[1750174426239,0.16631783,104370.0,104360.0,0.23001158]
[1750174426459,0.07215561,104370.0,104360.0,0.23001158]
[1750174426676,0.16631746,104370.0,104360.0,0.23001158]
[1750174426904,0.15673644,104370.0,104360.0,0.23001158]
[1750174427777,0.08457955,104380.0,104370.0,0.22036872]
[1750174427995,0.00114251,104390.0,104380.0,0.22992779]
[1750174428246,0.15487895,104390.0,104380.0,0.22992779]
[1750174428467,0.07029995,104390.0,104380.0,0.22992779]
[1750174428679,0.16445822,104390.0,104380.0,0.22992779]
[1750174428897,0.07987895,104390.0,104380.0,0.22992779]
[1750174429068,0.16445813,104390.0,104380.0,0.22992779]
[1750174429325,0.16445822,104390.0,104380.0,0.22828779]
[1750174429538,0.0232937,104390.0,104380.0,0.32452955]
[1750174429756,0.00114251,104390.0,104380.0,0.32452955]
[1750174429974,0.00114251,104390.0,104380.0,0.52072955]
[1750174430631,0.00114251,104390.0,104380.0,0.93473881]
[1750174430845,0.00114251,104390.0,104380.0,0.96483881]
[1750174431052,0.00114251,104390.0,104380.0,0.55082955]
[1750174431693,0.00314251,104390.0,104380.0,0.55082955]
[1750174432597,0.02229995,104390.0,104380.0,0.52016955]
[1750174432812,0.21389001,104390.0,104380.0,0.09624176]
[1750174433025,0.26389001,104390.0,104380.0,0.21076823]
[1750174433285,0.02873966,104380.0,104370.0,0.41592808]
[1750174433478,0.02873938,104380.0,104370.0,0.51232984]
[1750174433686,0.02873938,104380.0,104370.0,0.51216984]
[1750174433897,0.03831957,104380.0,104370.0,0.51216984]
[1750174434110,0.22034806,104380.0,104370.0,0.29744899]
[1750174434327,0.22034806,104380.0,104370.0,0.31661093]
[1750174434542,0.03832085,104380.0,104370.0,0.22994982]
[1750174434766,0.03173443,104380.0,104370.0,0.22994982]
[1750174434981,0.03173443,104380.0,104360.0,0.22042169]
[1750174434982,0.0383237,104370.0,104360.0,0.22042169]
[1750174435188,0.00958056,104370.0,104360.0,0.32624502]
[1750174435402,0.02874213,104370.0,104360.0,0.32624502]
[1750174435616,0.04790444,104370.0,104360.0,0.32624502]
[1750174435861,0.23953084,104370.0,104360.0,0.32624502]
[1750174436080,0.74274871,104370.0,104360.0,4e-05]
[1750174436296,0.84774871,104370.0,104360.0,0.00204]
[1750174436510,0.06916176,104370.0,104360.0,0.22242983]
[1750174436719,0.11332343,104370.0,104360.0,0.23201131]
[1750174436932,0.00958056,104370.0,104360.0,0.42701131]
[1750174437168,0.11332352,104370.0,104360.0,0.41742983]
[1750174437376,0.10673657,104370.0,104360.0,0.41742983]
[1750174437586,0.24252491,104370.0,104360.0,0.42242983]
[1750174437801,0.31453066,104370.0,104360.0,0.40326642]
[1750174438014,0.22036927,104370.0,104360.0,0.41284835]
[1750174438229,0.22036927,104370.0,104360.0,0.40326642]
[1750174438482,0.27620723,104370.0,104360.0,0.41284845]
[1750174438704,0.30091266,104370.0,104360.0,0.20826642]
[1750174438924,0.30091266,104370.0,104360.0,0.00704]
[1750174438925,0.7306352,104370.0,104360.0,0.00704]
[1750174439114,0.7966352,104370.0,104360.0,0.00704]
[1750174439584,0.38262594,104370.0,104360.0,0.00704]
[1750174439816,0.9916352,104370.0,104360.0,0.00704]
[1750174440250,1.03503622,104370.0,104360.0,0.00704]
[1750174440917,1.03503622,104370.0,104360.0,4e-05]
[1750174440918,1.47127798,104370.0,104360.0,4e-05]
[1750174441156,1.53615798,104370.0,104360.0,4e-05]
[1750174441370,1.12314872,104370.0,104360.0,4e-05]
[1750174441586,1.53715798,104370.0,104360.0,4e-05]
[1750174442031,1.53615798,104370.0,104360.0,4e-05]
[1750174442245,1.12214872,104370.0,104360.0,4e-05]
[1750174442473,1.53815798,104370.0,104360.0,0.00104]
[1750174442689,1.53815798,104370.0,104360.0,4e-05]
[1750174442914,1.53915798,104370.0,104360.0,4e-05]
[1750174443571,1.34415798,104370.0,104360.0,4e-05]
[1750174443789,1.22575696,104370.0,104360.0,4e-05]
[1750174444005,1.49575696,104370.0,104360.0,4e-05]
[1750174444473,1.0817477,104370.0,104360.0,4e-05]
[1750174444690,0.72562594,104370.0,104360.0,4e-05]
[1750174444918,0.58462594,104370.0,104360.0,4e-05]
[1750174445150,0.81910181,104370.0,104360.0,0.1916843]
[1750174445373,0.81910181,104370.0,104360.0,0.21084863]
[1750174445592,0.62410181,104370.0,104360.0,0.20126642]
[1750174445809,0.20536881,104370.0,104360.0,0.22042983]
[1750174446033,0.05958074,104370.0,104360.0,0.22042983]
[1750174446247,0.06916011,104380.0,104370.0,0.22036872]
[1750174446496,0.08832003,104380.0,104370.0,0.22036872]
[1750174446721,0.27992761,104380.0,104370.0,0.21078807]
[1750174446943,0.35492761,104380.0,104370.0,0.22036872]
[1750174447170,0.36450798,104380.0,104370.0,0.20120714]
[1750174447395,0.32618795,104380.0,104370.0,0.20120723]
[1750174447609,0.32618795,104380.0,104370.0,0.20220723]
[1750174448030,0.32718795,104380.0,104370.0,0.22136954]
[1750174448256,0.32718795,104380.0,104370.0,0.001]
[1750174448488,0.80459721,104380.0,104370.0,0.001]
[1750174449635,0.32718795,104380.0,104370.0,0.001]
[1750174449866,0.52214795,104380.0,104370.0,0.001]
[1750174450588,0.52214795,104380.0,104370.0,0.20220714]
[1750174450589,0.44714795,104380.0,104370.0,0.20220714]
[1750174450809,0.51256758,104380.0,104370.0,0.001]
[1750174451035,0.57496758,104380.0,104370.0,0.001]
[1750174451946,0.54366758,104380.0,104370.0,0.001]
[1750174452164,0.51256758,104380.0,104370.0,0.20220705]
[1750174452379,0.24260758,104380.0,104370.0,0.20220705]
[1750174452831,0.051,104380.0,104370.0,0.31751922]
[1750174453051,0.001,104380.0,104370.0,1.08353024]
[1750174453268,0.001,104380.0,104370.0,1.14845024]
[1750174453486,0.001,104380.0,104370.0,1.16299109]
[1750174453704,0.001,104380.0,104370.0,1.16199109]
[1750174453940,0.00957781,104400.0,104390.0,0.22990521]
[1750174454170,0.00957781,104400.0,104390.0,0.23004772]
[1750174454438,0.02873415,104400.0,104390.0,0.220469]
[1750174454684,0.03831232,104400.0,104390.0,0.220469]
[1750174454927,0.23199324,104400.0,104390.0,0.2013111]
[1750174455166,0.22030585,104400.0,104390.0,0.00014251]
[1750174455410,0.91653383,104400.0,104390.0,0.00014251]
[1750174455649,1.22135694,104400.0,104390.0,0.00014251]
[1750174456574,1.22135694,104400.0,104390.0,0.00314251]
[1750174456798,1.22235694,104400.0,104390.0,0.00014251]
[1750174457234,1.22235694,104400.0,104390.0,0.00114251]
[1750174457456,0.61342768,104400.0,104390.0,0.00114251]
[1750174457670,0.55172768,104400.0,104390.0,0.00114251]
[1750174458111,1.19335694,104400.0,104390.0,0.00114251]
[1750174458343,0.58442768,104400.0,104390.0,0.00114251]
[1750174458568,0.55172768,104400.0,104390.0,0.21189019]
[1750174458843,0.55172768,104400.0,104390.0,0.21189037]
[1750174459059,0.53257088,104400.0,104390.0,0.00114251]
[1750174459935,0.94658014,104400.0,104390.0,0.00114251]
[1750174460152,1.07758353,104400.0,104390.0,0.00114251]